lending/lending_fUSD_20240507
["ID","MTS","AMOUNT","RATE_DAILY","PERIOD"]
[326593488,1715121064419,-512.55,0.00021643,2]
[326593489,1715121064432,-1590.66,0.00021643,2]
[326593490,1715121064442,-500.0,0.00021643,2]
[326593491,1715121064466,-391.10003114,0.00021643,2]
[326593492,1715121064477,-739.97,0.00021643,2]
[326593493,1715121064487,-500.0,0.00021643,2]
[326593494,1715121064496,-500.0,0.00021643,2]
[326593495,1715121064510,-308.42040576,0.00021643,2]
[326593496,1715121064520,-500.0,0.00021643,2]
[326593497,1715121064530,-500.0,0.00021643,2]
[326593498,1715121064540,-830.23,0.00021643,2]
[326593499,1715121064550,-500.0,0.00021643,2]
[326593500,1715121064560,-500.0,0.00021643,2]
[326593501,1715121064570,-500.0,0.00021643,2]
[326593502,1715121064580,-500.0,0.00021643,2]
[326593503,1715121064590,-500.0,0.00021643,2]
[326593504,1715121064600,-500.0,0.00021643,2]
[326593505,1715121064610,-500.0,0.00021643,2]
[326593506,1715121064620,-500.0,0.00021643,2]
[326593507,1715121064630,-991.88,0.00021643,2]
[326593508,1715121064640,-650.04,0.00021643,2]
[326593509,1715121064650,-500.0,0.00021643,2]
[326593510,1715121064660,-500.0,0.00021643,2]
[326593511,1715121064670,-828.79,0.00021643,2]
[326593512,1715121064680,-500.0,0.00021643,2]
[326593513,1715121064690,-500.0,0.00021643,2]
[326593514,1715121064699,-925.95,0.00021643,2]
[326593515,1715121064709,-500.0,0.00021643,2]
[326593516,1715121064719,-500.0,0.00021643,2]
[326593517,1715121064729,-500.0,0.00021643,2]
[326593518,1715121064740,-500.0,0.00021643,2]
[326593519,1715121064750,-2727.01,0.00021643,2]
[326593520,1715121064760,-500.0,0.00021643,2]
[326593521,1715121064770,-589.69,0.00021643,2]
[326593522,1715121064780,-902.98,0.00021643,2]
[326593523,1715121064789,-500.0,0.00021643,2]
[326593524,1715121064799,-920.03,0.00021643,2]
[326593525,1715121064810,-556.81,0.00021643,2]
[326593526,1715121064820,-567.2577903,0.00021643,2]
[326593527,1715121064829,-656.33,0.00021643,2]
[326593528,1715121064839,-500.0,0.00021643,2]
[326593529,1715121064849,-3553.82,0.00021643,2]
[326593530,1715121064859,-500.0,0.00021643,2]
[326593531,1715121064869,-808.96,0.00021643,2]
[326593532,1715121064879,-1765.9,0.00021643,2]
[326593533,1715121064889,-6628.97099345,0.00021754,2]
[326593534,1715121064899,-1000.0,0.000218,2]
[326593535,1715121064908,-159.17705713,0.00021827,2]
[326593536,1715121064919,-261.28091094,0.000219,2]
[326593537,1715121064928,-545.12002946,0.000219,2]
[326593538,1715121064938,-847.32423892,0.000219,2]
[326593539,1715121064948,-12368.65575836,0.000219,2]
[326593540,1715121064957,-266.04118242,0.000219,2]
[326593541,1715121064967,-500.0,0.00021917,5]
[326593542,1715121064976,-500.0,0.00021917,5]
[326593543,1715121064986,-500.0,0.00021917,5]
[326593544,1715121064996,-500.0,0.00021917,5]
[326593545,1715121065006,-455.45800052,0.00021917,5]
[326593546,1715121065015,-500.0,0.00021917,2]
[326593547,1715121065025,-500.0,0.00021917,2]
[326593548,1715121065035,-500.0,0.00021917,2]
[326593549,1715121065045,-500.0,0.00021917,2]
[326593550,1715121065055,-500.0,0.00021917,2]
[326593551,1715121065064,-500.0,0.00021917,2]
[326593552,1715121065074,-208.0529777,0.00021917,2]
[326593553,1715121065083,-500.0,0.00021917,2]
[326593554,1715121065093,-500.0,0.00021917,2]
[326593555,1715121065104,-500.0,0.00021917,2]
[326593556,1715121065114,-500.0,0.00021917,2]
[326593557,1715121065124,-666.66,0.00021917,2]
[326593558,1715121065134,-500.0,0.00021917,2]
[326593559,1715121065143,-500.0,0.00021917,2]
[326593560,1715121065152,-500.0,0.00021917,2]
[326593561,1715121065162,-500.0,0.00021917,2]
[326593562,1715121065172,-150.0,0.00021917,2]
[326593563,1715121065181,-500.0,0.00021917,2]
[326593564,1715121065192,-500.0,0.00021917,2]
[326593565,1715121065202,-500.0,0.00021917,2]
[326593566,1715121065212,-500.0,0.00021917,2]
[326593567,1715121065221,-500.0,0.00021917,2]
[326593568,1715121065231,-500.0,0.00021917,2]
[326593569,1715121065241,-500.0,0.00021917,2]
[326593570,1715121065251,-500.0,0.00021917,2]
[326593571,1715121065261,-500.0,0.00021917,2]
[326593572,1715121065271,-500.0,0.00021917,2]
[326593573,1715121065280,-899.64,0.00021917,2]
[326593574,1715121065291,-500.0,0.00021917,2]
[326593575,1715121065300,-1730.35,0.00021917,2]
[326593576,1715121065311,-500.0,0.00021917,2]
[326593577,1715121065322,-500.0,0.00021917,2]
[326593578,1715121065332,-1244.08,0.00021917,2]
[326593579,1715121065342,-500.0,0.00021917,2]
[326593580,1715121065352,-500.0,0.00021917,2]
[326593581,1715121065361,-500.0,0.00021917,2]
[326593582,1715121065371,-799.88,0.00021917,2]
[326593583,1715121065382,-568.92,0.00021917,2]
[326593584,1715121065392,-500.0,0.00021917,2]
[326593585,1715121065401,-500.0,0.00021917,2]
[326593586,1715121065411,-500.0,0.00021917,2]
[326593587,1715121065424,-672.9,0.00021917,2]
[326593588,1715121065438,-500.0,0.00021917,2]
[326593589,1715121065448,-2011.2,0.00021917,2]
[326593590,1715121065459,-500.0,0.00021917,2]
[326593591,1715121065468,-500.0,0.00021917,2]
[326593592,1715121065479,-892.44,0.00021917,2]
[326593593,1715121065489,-500.0,0.00021917,2]
[326593594,1715121065498,-500.0,0.00021917,2]
[326593595,1715121065510,-637.08,0.00021917,2]
[326593596,1715121065521,-2660.28,0.00021917,2]
[326593597,1715121065531,-799.11,0.00021917,2]
[326593598,1715121065541,-500.0,0.00021917,2]
[326593599,1715121065551,-500.0,0.00021917,2]
[326593600,1715121065561,-500.0,0.00021917,2]
[326593601,1715121065571,-500.0,0.00021917,2]
[326593602,1715121065581,-500.0,0.00021917,2]
[326593603,1715121065591,-4975.18,0.00021917,2]
[326593604,1715121065601,-500.0,0.00021917,2]
[326593605,1715121065611,-500.0,0.00021917,2]
[326593606,1715121065621,-500.0,0.00021917,2]
[326593607,1715121065631,-500.0,0.00021917,2]
[326593608,1715121065641,-500.0,0.00021917,2]
[326593609,1715121065651,-500.0,0.00021917,2]
[326593610,1715121065661,-500.0,0.00021917,2]
[326593611,1715121065670,-731.55,0.00021917,2]
[326593612,1715121065680,-799.52,0.00021917,2]
[326593613,1715121065689,-500.0,0.00021917,2]
[326593614,1715121065698,-500.0,0.00021917,2]
[326593615,1715121065708,-500.0,0.00021917,2]
[326593616,1715121065719,-500.0,0.00021917,2]
[326593617,1715121065729,-500.0,0.00021917,2]
[326593618,1715121065738,-500.0,0.00021917,2]
[326593619,1715121065748,-500.0,0.00021917,2]
[326593620,1715121065759,-606.61,0.00021917,2]
[326593621,1715121065768,-500.0,0.00021917,2]
[326593622,1715121065778,-500.0,0.00021917,2]
[326593623,1715121065788,-609.71186733,0.00021917,2]
[326593624,1715121065798,-500.0,0.00021917,2]
[326593625,1715121065808,-500.0,0.00021917,2]
[326593626,1715121065818,-500.0,0.00021917,2]
[326593627,1715121065827,-512.55,0.00021917,2]
[326593628,1715121065837,-1590.66,0.00021917,2]
[326593629,1715121065847,-500.0,0.00021917,2]
[326593630,1715121065857,-739.97,0.00021917,2]
[326593631,1715121065866,-500.0,0.00021917,2]
[326593632,1715121065876,-500.0,0.00021917,2]
[326593633,1715121065886,-500.0,0.00021917,2]
[326593634,1715121065896,-830.23,0.00021917,2]
[326593635,1715121065906,-500.0,0.00021917,2]
[326593636,1715121065915,-500.0,0.00021917,2]
[326593637,1715121065925,-241.45985368,0.00021917,2]
[326593638,1715121065936,-500.0,0.00021917,2]
[326593639,1715121065946,-500.0,0.00021917,2]
[326593640,1715121065955,-500.0,0.00021917,2]
[326593641,1715121065965,-500.0,0.00021917,2]
[326593642,1715121065975,-500.0,0.00021917,2]
[326593643,1715121065985,-991.88,0.00021917,2]
[326593644,1715121065995,-650.04,0.00021917,2]
[326593645,1715121066005,-500.0,0.00021917,2]
[326593646,1715121066015,-500.0,0.00021917,2]
[326593647,1715121066026,-828.79,0.00021917,2]
[326593648,1715121066036,-500.0,0.00021917,2]
[326593649,1715121066045,-500.0,0.00021917,2]
[326593650,1715121066055,-925.95,0.00021917,2]
[326593651,1715121066065,-500.0,0.00021917,2]
[326593652,1715121066075,-500.0,0.00021917,2]
[326593653,1715121066086,-500.0,0.00021917,2]
[326593654,1715121066097,-500.0,0.00021917,2]
[326593655,1715121066108,-2727.01,0.00021917,2]
[326593656,1715121066119,-500.0,0.00021917,2]
[326593657,1715121066128,-589.69,0.00021917,2]
[326593658,1715121066137,-902.98,0.00021917,2]
[326593659,1715121066147,-500.0,0.00021917,2]
[326593660,1715121066157,-920.03,0.00021917,2]
[326593661,1715121066168,-556.81,0.00021917,2]
[326593662,1715121066178,-656.33,0.00021917,2]
[326593663,1715121066187,-3553.82,0.00021917,2]
[326593664,1715121066198,-500.0,0.00021917,2]
[326593665,1715121066208,-500.0,0.00021917,2]
[326593666,1715121066218,-808.96,0.00021917,2]
[326593667,1715121066227,-1765.9,0.00021917,2]
[326593668,1715121066237,-2000.0,0.00021918,2]
[326593669,1715121066246,-250.0,0.00021918,2]
[326593670,1715121066256,-250.0,0.00021918,2]
[326593671,1715121066266,-275.0,0.0002197,15]
[326593672,1715121066276,-481.0,0.0002197,15]
[326593673,1715121066412,-275.0,0.0002198,15]
[326593674,1715121066427,-481.0,0.0002198,15]
[326593675,1715121066436,-150.5,0.0002199,15]
[326593676,1715121066446,-275.0,0.0002199,15]
[326593677,1715121066455,-481.0,0.0002199,15]
[326593678,1715121066467,-306.58640798,0.0002199,2]
[326593679,1715121066477,-1075.26902827,0.00021999,10]
[326593680,1715121066487,-1075.26902827,0.00021999,10]
[326593681,1715121066498,-1397.1,0.00021999,2]
[326593682,1715121066508,-500.0,0.00021999,2]
[326593683,1715121066518,-500.0,0.00021999,2]
[326593684,1715121066528,-500.0,0.00021999,2]
[326593685,1715121066538,-500.0,0.00021999,2]
[326593686,1715121066548,-452.34,0.00021999,2]
[326593687,1715121066558,-546.36598452,0.00022,2]
[326593688,1715121066568,-330931.91688425,0.00022,2]
[326593689,1715121066728,-7855.50752835,0.00022,2]
[326593690,1715121066739,-2221.03993,0.00022,2]
[326593691,1715121066751,-865.00999,0.00022,2]
[326593692,1715121066762,-336.95839996,0.00022,2]
[326593693,1715121066843,-291.2772942,0.00012,2]
[326593694,1715121066854,-500.0,0.00012,2]
[326593695,1715121066866,-310.00217,0.00012,2]
[326593696,1715121066877,-8970.63302165,0.00012,2]
[326593697,1715121066886,-363.81807592,0.00019176,2]
[326593698,1715121066896,-305.72421467,0.00019176,2]
[326593699,1715121066905,-157.19167715,0.00019176,2]
[326593700,1715121066915,-8696.75509935,0.00019176,2]
[326593701,1715121066924,-2325.27290029,0.00019176,2]
[326593702,1715121066934,-16362.22620808,0.00022,2]
[326593703,1715121066946,-1574.15,0.00022,2]
[326593704,1715121066957,-9426.15,0.00022,2]
[326593705,1715121066969,-605.50432414,0.00022,2]
[326593706,1715121066980,-409.20495899,0.00022,2]
[326593707,1715121066991,-3352.69443134,0.00022,2]
[326593708,1715121067002,-35017.92085846,0.00022,2]
[326593709,1715121067014,-4100.0,0.00022,2]
[326593710,1715121067025,-363.58147226,0.00022,2]
[326593711,1715121067036,-527.62,0.00022,2]
[326593712,1715121067047,-2678.34680619,0.00022,2]
[326593713,1715121067058,-994.19092379,0.00022,2]
[326593714,1715121067069,-1013.92560801,0.00022,2]
[326593715,1715121067081,-626.5,0.00022,2]
[326593716,1715121067092,-15258.31412161,0.00022,2]
[326593717,1715121067105,-1556.7999962,0.00022,2]
[326593718,1715121067116,-3462.62223728,0.00022,2]
[326593719,1715121276745,668.88370056,6.94e-05,2]
[326593723,1715121310372,155.0,6.94e-05,2]
[326593724,1715121310945,399.72158659,6.94e-05,2]
[326593725,1715121311248,366.21185913,6.94e-05,2]
[326593726,1715121313228,7509.13550586,6.94e-05,2]
[326593727,1715121316769,196.52425206,6.94e-05,2]
[326593728,1715121317210,1435.82428904,6.94e-05,2]
[326593729,1715121318367,390.51265116,6.94e-05,2]
[326593730,1715121329241,7165.74147726,6.94e-05,2]
[326593734,1715122233220,-522.13920169,9.166e-05,2]
[326593739,1715122233232,-933.49206678,9.166e-05,2]
[326593742,1715122233243,-853.55546554,9.166e-05,2]
[326593745,1715122233258,-188.25326599,9.166e-05,2]
[326593747,1715122233267,-150.10673401,9.207e-05,2]
[326593748,1715122233279,-5116.65679219,9.207e-05,2]
[326593749,1715122233288,-177.64257205,9.207e-05,2]
[326593750,1715122233297,-1997.82151721,9.207e-05,2]
[326593751,1715122233306,-4736.48162627,9.208e-05,2]
[326593752,1715122233315,-155.0,9.208e-05,2]
[326593753,1715122233324,-155.89396625,9.208e-05,2]
[326593754,1715122233333,-2392.19276065,9.208e-05,2]
[326593755,1715122233345,-348.06104,9.208e-05,2]
[326593756,1715122233356,-264.64605058,9.208e-05,2]
[326593757,1715122233366,-155.0,9.208e-05,2]
[326593758,1715122233375,-149.26394942,9.209e-05,2]
[326593759,1715122238690,-411.93521121,9.209e-05,2]
[326593762,1715122238702,-81.28999035,9.209e-05,2]
[326593764,1715122238712,-311.84812241,9.209e-05,2]
[326593766,1715122238722,-740.21152015,9.209e-05,2]
[326593768,1715122238732,-2371.39452227,9.209e-05,2]
[326593769,1715122238743,-653.19268165,9.209e-05,2]
[326593770,1715122238752,-4271.31667855,9.209e-05,2]
[326593771,1715122238764,-161.77912912,9.21e-05,2]
[326593772,1715122238773,-2101.4,9.211e-05,2]
[326593773,1715122238782,-1859.61,9.216e-05,2]
[326593774,1715122238797,-2653.15,9.264e-05,2]
[326593775,1715122238806,-30001.34527475,9.273e-05,2]
[326593776,1715122238815,-1831.97,9.278e-05,2]
[326593777,1715122238826,-241.54,9.295e-05,2]
[326593778,1715122238835,-150.0,9.312e-05,2]
[326593779,1715122238844,-304.56,9.315e-05,2]
[326593780,1715122238853,-1785.98076718,9.33e-05,2]
[326593781,1715122238863,-200.0,9.338e-05,2]
[326593782,1715122238872,-1662.01,9.34e-05,2]
[326593783,1715122238884,-250.0,9.384e-05,2]
[326593784,1715122238893,-150.0,9.425e-05,2]
[326593785,1715122238902,-294.17,9.449e-05,2]
[326593786,1715122238912,-1500.0,9.454e-05,2]
[326593787,1715122238921,-652.26,9.458e-05,2]
[326593788,1715122238931,-10310.1,9.67e-05,2]
[326593789,1715122238940,-150.99,9.67e-05,2]
[326593790,1715122238949,-155.78,9.67e-05,2]
[326593791,1715122238958,-294.15,9.67e-05,2]
[326593792,1715122238968,-499.99,9.67e-05,2]
[326593793,1715122238977,-256.24807285,9.875e-05,2]
[326593794,1715122238986,-155.0,0.0001,2]
[326593795,1715122238995,-711.54040194,0.0001,2]
[326593796,1715122239004,-1395.8110513,0.00010075,2]
[326593797,1715122239016,-137925.67920394,0.00010079,2]
[326593798,1715122239025,-242.72405768,0.000101,2]
[326593799,1715122239034,-192.21,0.00010162,2]
[326593800,1715122239044,-151.96,0.00010238,2]
[326593801,1715122239053,-151.96,0.00010268,2]
[326593802,1715122239062,-151.96,0.00010297,2]
[326593803,1715122239072,-151.96,0.00010327,2]
[326593804,1715122239081,-151.96,0.00010356,2]
[326593805,1715122239090,-151.96,0.00010386,2]
[326593806,1715122239100,-342.64,0.00010408,2]
[326593807,1715122239109,-151.96,0.00010416,2]
[326593808,1715122239118,-151.96,0.00010445,2]
[326593809,1715122239127,-151.96,0.00010475,2]
[326593810,1715122239136,-151.96,0.00010505,2]
[326593811,1715122239146,-151.96,0.00010534,2]
[326593812,1715122239155,-151.96,0.00010564,2]
[326593813,1715122239164,-151.96,0.00010594,2]
[326593814,1715122239173,-151.96,0.00010623,2]
[326593815,1715122239183,-294.17,0.0001063,2]
[326593816,1715122239192,-151.96,0.00010653,2]
[326593817,1715122239201,-151.96,0.00010683,2]
[326593818,1715122239211,-9083.89932567,0.000107,2]
[326593819,1715122239221,-151.96,0.00010712,2]
[326593820,1715122239230,-151.96,0.00010742,2]
[326593821,1715122239239,-1852.42,0.00010761,2]
[326593822,1715122239249,-151.96,0.00010771,2]
[326593823,1715122239258,-150.0,0.00010959,2]
[326593824,1715122239270,-10000.0,0.00010959,2]
[326593825,1715122239279,-150.0,0.00010959,2]
[326593826,1715122239288,-150.99,0.00010996,2]
[326593827,1715122239298,-6653.4796109,0.00011,2]
[326593828,1715122239307,-224.99,0.00011773,2]
[326593829,1715122239317,-2444.85859059,0.000118,2]
[326593830,1715122239327,-294.17,0.00011812,2]
[326593831,1715122239336,-2101.4,0.0001195,2]
[326593832,1715122239346,-3466.90159126,0.00012,2]
[326593833,1715122239355,-192.21,0.00012702,2]
[326593834,1715122239364,-2070.77455415,0.00012886,2]
[326593835,1715122239374,-525.24965384,0.00012898,2]
[326593836,1715122239383,-155.0,0.00012898,2]
[326593837,1715122239393,-162.11231848,0.00012898,2]
[326593838,1715122239402,-378.02727521,0.00012898,2]
[326593839,1715122239412,-1325.97003301,0.00012898,2]
[326593840,1715122239422,-324.0890106,0.00012898,2]
[326593841,1715122239433,-360.01550888,0.00012898,2]
[326593842,1715122239442,-554.84517864,0.00012898,2]
[326593843,1715122239451,-5551.89418728,0.00012898,2]
[326593844,1715122239461,-3083.85801135,0.00012898,2]
[326593845,1715122239470,-178.8452573,0.00012898,2]
[326593846,1715122239479,-155.08590433,0.00012898,2]
[326593847,1715122239489,-155.0,0.00012898,2]
[326593848,1715122239498,-155.0,0.00012898,2]
[326593849,1715122239508,-3697.29672041,0.00012899,2]
[326593850,1715122239519,-67925.3469,0.000129,2]
[326593851,1715122239528,-14952.3709,0.000129,2]
[326593852,1715122239536,-317.05774051,0.000129,2]
[326593853,1715122239546,-916.47227894,0.000129,2]
[326593854,1715122239555,-167.54819866,0.00012915,2]
[326593855,1715122239564,-186.66399882,0.00012915,2]
[326593856,1715122239574,-284.769747,0.00012915,2]
[326593857,1715122239583,-1081.17507886,0.00012915,2]
[326593858,1715122239593,-6381.93495264,0.0001299,2]
[326593859,1715122239602,-435.76103741,0.0001299,2]
[326593860,1715122239611,-150.64,0.0001299,2]
[326593861,1715122239621,-435.76103741,0.0001299,2]
[326593862,1715122239630,-150.64,0.0001299,2]
[326593863,1715122239639,-435.76103741,0.0001299,2]
[326593864,1715122239649,-150.64,0.0001299,2]
[326593865,1715122239658,-150.64,0.0001299,2]
[326593866,1715122239667,-150.64,0.0001299,2]
[326593867,1715122239677,-150.64,0.0001299,2]
[326593868,1715122239686,-150.64,0.0001299,2]
[326593869,1715122239695,-150.64,0.0001299,2]
[326593870,1715122239704,-150.64,0.0001299,2]
[326593871,1715122239713,-150.64,0.0001299,2]
[326593872,1715122239722,-150.64,0.0001299,2]
[326593873,1715122239732,-150.64,0.0001299,2]
[326593874,1715122239741,-150.64,0.0001299,2]
[326593875,1715122239751,-150.64,0.0001299,2]
[326593876,1715122239762,-150.64,0.0001299,2]
[326593877,1715122239772,-150.64,0.0001299,2]
[326593878,1715122239781,-150.64,0.0001299,2]
[326593879,1715122239792,-150.64,0.0001299,2]
[326593880,1715122239805,-150.64,0.0001299,2]
[326593881,1715122239814,-150.64,0.0001299,2]
[326593882,1715122239824,-150.64,0.0001299,2]
[326593883,1715122239835,-150.64,0.0001299,2]
[326593884,1715122239844,-150.64,0.0001299,2]
[326593885,1715122239854,-150.64,0.0001299,2]
[326593886,1715122239863,-150.64,0.0001299,2]
[326593887,1715122239873,-150.64,0.0001299,2]
[326593888,1715122239884,-150.64,0.0001299,2]
[326593889,1715122239894,-150.64,0.0001299,2]
[326593890,1715122239903,-150.64,0.0001299,2]
[326593891,1715122239913,-294.17,0.00012993,2]
[326593892,1715122239923,-155.0,0.00012998,2]
[326593893,1715122239933,-1034.6412428,0.00012999,3]
[326593894,1715122239942,-633908.28528911,0.00013,2]
[326593895,1715122239952,-2449946.49775341,0.00013,2]
[326593896,1715122240322,-155.0,9.208e-05,2]
[326593898,1715122240332,-916.47227892,0.00012933,2]
[326593900,1715122240341,-463.75232001,0.00013,2]
[326593902,1715122240353,-2110229.31680533,0.00013,2]
[326593905,1715122240364,-261282.96724765,0.00013,2]
[326593907,1715122240375,-152.77033547,0.00013362,2]
[326593908,1715122240384,-169.73,0.00013425,2]
[326593909,1715122240393,-200.0,0.00013699,2]
[326593910,1715122240402,-500.0,0.00013699,2]
[326593911,1715122240411,-294.17,0.00014174,2]
[326593912,1715122240420,-317.05774051,0.00014243,2]
[326593913,1715122240430,-1000.0,0.00014633,2]
[326593914,1715122240439,-2101.4,0.0001469,2]
[326593915,1715122240448,-192.21,0.00015242,2]
[326593916,1715122240457,-317.05774051,0.00015686,2]
[326593917,1715122240466,-195.81,0.00016391,2]
[326593918,1715122240475,-1000.0,0.00016462,2]
[326593919,1715122240484,-1224.78398941,0.000165,2]
[326593920,1715122240493,-155.52459271,0.00016666,2]
[326593921,1715122240503,-317.05774051,0.00017129,2]
[326593922,1715122240515,-300.0,0.00017148,2]
[326593923,1715122240525,-1103.33259888,0.0001725,2]
[326593924,1715122240534,-153.40116984,0.0001737,2]
[326593925,1715122240543,-152.62869324,0.00017494,2]
[326593927,1715122240553,-23900.0,0.00017545,2]
[326593928,1715122240562,-163.74808073,0.00017673,2]
[326593930,1715122240572,-153.40116984,0.00017685,2]
[326593932,1715122240582,-359.89383142,0.0001788,2]
[326593934,1715122240591,-359.89383141,0.0001788,2]
[326593937,1715122240601,-359.89383141,0.0001788,2]
[326593938,1715122240611,-359.89383141,0.0001788,2]
[326593940,1715122240621,-997.60990278,0.0001788,2]
[326593942,1715122240630,-997.60990278,0.0001788,2]
[326593944,1715122240639,-186.6639988,0.00017908,2]
[326593946,1715122240649,-750.0,0.00018,3]
[326593948,1715122240658,-524.09,0.00018039,2]
[326593950,1715122240668,-1000.0,0.00018291,2]
[326593952,1715122240677,-359.89383141,0.000184,2]
[326593954,1715122240687,-152.62869324,0.00018444,2]
[326593956,1715122240697,-163.74808073,0.00018449,2]
[326593958,1715122240706,-317.05774051,0.00018571,2]
[326593960,1715122240716,-284.76974699,0.00018736,2]
[326593962,1715122240725,-1081.17507885,0.00018736,2]
[326593964,1715122240735,-3015.0,0.000188,3]
[326593966,1715122240745,-150.64,0.00018867,2]
[326593968,1715122240754,-150.64,0.00018867,2]
[326593970,1715122240766,-1075.26902827,0.00018876,5]
[326593972,1715122240776,-10463.9914,0.00018877,2]
[326593974,1715122240785,-26343.6457,0.00018877,2]
[326593976,1715122240798,-163.7869,0.00018877,2]
[326593978,1715122240809,-966.8243,0.00018877,2]
[326593980,1715122240818,-245000.0,0.00018877,2]
[326593982,1715122240828,-232.2857,0.00018877,2]
[326593984,1715122240839,-854.9439,0.00018877,2]
[326593986,1715122240848,-150.64,0.00018967,2]
[326593988,1715122240858,-713.5024,0.00018975,2]
[326593991,1715122240868,-2181.87993644,0.00018975,2]
[326593993,1715122240879,-859.27212413,0.00018975,2]
[326593995,1715122240888,-2321.63410741,0.00018976,2]
[326593997,1715122240898,-81134.9898,0.00018977,2]
[326593998,1715122240908,-4449.4355,0.00018977,2]
[326594000,1715122240918,-39111.2713,0.00018977,2]
[326594003,1715122240928,-1000.0,0.00018977,2]
[326594005,1715122240938,-2465.3731,0.00018977,2]
[326594007,1715122240947,-4422.1099,0.00018977,2]
[326594009,1715122240956,-100000.0,0.00018977,2]
[326594011,1715122240966,-183.084,0.00018977,2]
[326594013,1715122240976,-155.0,0.00019,2]
[326594015,1715122240985,-500.0,0.00019076,2]
[326594017,1715122240995,-10000.0,0.00019078,2]
[326594019,1715122241005,-163.74808073,0.00019081,2]
[326594021,1715122241015,-150.64,0.00019165,2]
[326594022,1715122241024,-684.48633399,0.00019175,2]
[326594024,1715122241034,-427.85730046,0.00019175,2]
[326594027,1715122241044,-182.85476164,0.00019175,2]
[326594028,1715122241053,-251.19245496,0.00019175,2]
[326594030,1715122241063,-500.0,0.00019176,2]
[326594033,1715122241073,-1000.0,0.00019176,5]
[326594035,1715122241083,-1000.0,0.00019177,5]
[326594037,1715122241092,-500.0,0.00019178,2]
[326594039,1715122241101,-500.0,0.00019178,2]
[326594041,1715122241110,-500.0,0.00019178,2]
[326594042,1715122241120,-544.84,0.00019178,2]
[326594044,1715122241129,-539.47,0.00019178,2]
[326594046,1715122241139,-500.0,0.00019178,2]
[326594049,1715122241148,-258.19,0.00019178,2]
[326594050,1715122241158,-500.0,0.00019178,2]
[326594052,1715122241167,-508.38029609,0.00019178,2]
[326594055,1715122241176,-500.0,0.00019178,2]
[326594057,1715122241186,-500.0,0.00019178,2]
[326594058,1715122241195,-500.0,0.00019178,2]
[326594060,1715122241205,-500.0,0.00019178,2]
[326594062,1715122241215,-500.0,0.00019178,2]
[326594064,1715122241224,-500.0,0.00019178,2]
[326594066,1715122241233,-500.0,0.00019178,2]
[326594068,1715122241242,-500.0,0.00019178,2]
[326594070,1715122241251,-635.25,0.00019178,2]
[326594072,1715122241263,-489.8580573,0.00019178,2]
[326594074,1715122241272,-500.0,0.00019178,2]
[326594077,1715122241281,-500.0,0.00019178,2]
[326594078,1715122241290,-500.0,0.00019178,2]
[326594080,1715122241299,-228.45,0.00019178,2]
[326594082,1715122241309,-589.55665977,0.00019178,2]
[326594084,1715122241318,-500.0,0.00019178,2]
[326594086,1715122241328,-500.0,0.00019178,2]
[326594088,1715122241339,-500.0,0.00019178,2]
[326594091,1715122241348,-500.0,0.00019178,2]
[326594092,1715122241357,-500.0,0.00019178,2]
[326594095,1715122241367,-500.0,0.00019178,2]
[326594097,1715122241377,-500.0,0.00019178,2]
[326594099,1715122241386,-593.37356892,0.00019178,2]
[326594101,1715122241395,-537.89,0.00019178,2]